bitfinex-derivatives/quotes_SOLF0:USTF0_20250227
["timestamp","ask_amount","ask_price","bid_price","bid_amount"]
[1740633619493,192.0,138.99,138.85,3.9456]
[1740633620195,7.2047,138.95,138.89,7.2076]
[1740633620397,0.05256582,138.93,138.91,0.05144237]
[1740633621897,7.25826582,138.93,138.91,0.05144237]
[1740633622091,0.05256582,138.93,138.91,0.05144237]
[1740633622284,0.05256582,138.93,138.85,3.9456]
[1740633622485,0.05256582,138.93,138.81,29.20508475]
[1740633622689,7.2076,138.9,138.81,29.20508475]
[1740633622886,1.9696,138.94,138.81,29.20508475]
[1740633623489,0.04601691,138.89,138.86,0.05264256]
[1740633623993,7.2082,138.88,138.86,0.05264256]
[1740633625498,7.2087,138.87,138.86,0.05264256]
[1740633630595,7.2087,138.87,138.86,4.256e-05]
[1740633632603,9.2175,138.87,138.86,4.256e-05]
[1740633634806,7.2087,138.87,138.86,4.256e-05]
[1740633639111,9.2116,138.87,138.86,4.256e-05]
[1740633639904,11.54,138.88,138.86,4.256e-05]
[1740633640102,18.7484,138.88,138.86,4.256e-05]
[1740633641010,7.2087,138.87,138.86,4.256e-05]
[1740633642010,11.54,138.88,138.86,4.256e-05]
[1740633642211,18.7484,138.88,138.86,4.256e-05]
[1740633642711,11.54,138.88,138.86,4.256e-05]
[1740633642911,7.2087,138.87,138.86,4.256e-05]
[1740633646106,28.8087,138.87,138.86,4.256e-05]
[1740633646703,7.2087,138.87,138.86,4.256e-05]
[1740633647107,28.8087,138.87,138.86,4.256e-05]
[1740633647407,30.10352391,138.87,138.86,4.256e-05]
[1740633647611,30.10359642,138.87,138.86,4.256e-05]
[1740633648814,30.10377412,138.87,138.86,4.256e-05]
[1740633650012,21.6,138.85,138.63,29.20508475]
[1740633650217,21.6,138.83,138.65,5.7956]
[1740633650411,1.29507412,138.82,138.68,7.2184]
[1740633650717,21.6,138.8,138.65,5.7956]
[1740633651014,1.9246,138.79,138.65,5.7956]
[1740633651214,0.05137011,138.74,138.71,0.04756177]
[1740633652112,7.2169,138.72,138.71,0.04756177]
[1740633653019,0.05137011,138.74,138.71,0.04756177]
[1740633656713,0.05137011,138.74,138.71,7.26426177]
[1740633656913,20.79058,138.79,138.71,0.04756177]
[1740633657417,7.2135,138.78,138.73,7.2159]
[1740633657817,7.2135,138.78,138.72,1.8619]
[1740633658015,28.00348,138.79,138.74,7.2154]
[1740633658213,0.05212389,138.76,138.74,7.26278482]
[1740633658612,0.05212389,138.76,138.74,0.04738482]
[1740633659019,20.79058,138.79,138.74,0.04738482]
[1740633659219,28.00398,138.79,138.74,7.26278482]
[1740633660318,7.26801652,138.78,138.74,7.26278482]
[1740633660722,0.05461652,138.78,138.74,7.26278482]
[1740633661315,0.05461652,138.78,138.74,0.04738482]
[1740633661824,7.214,138.77,138.74,0.04738482]
[1740633662523,0.05461652,138.78,138.74,0.04738482]
[1740633663626,7.2147,138.76,138.74,0.04738482]
[1740633664226,0.05461652,138.78,138.74,0.04738482]
[1740633664431,7.2149,138.75,138.74,0.04738482]
[1740633664626,0.05461652,138.78,138.74,0.04738482]
[1740633664819,7.2148,138.76,138.74,0.04738482]
[1740633666529,0.05461652,138.78,138.74,0.04738482]
[1740633667531,20.79058,138.79,138.74,0.04738482]
[1740633668621,0.04551213,138.78,138.74,0.04738482]
[1740633670633,7.2139,138.77,138.74,0.04738482]
[1740633670933,7.2147,138.76,138.74,0.04738482]
[1740633671433,7.2141,138.77,138.74,0.04738482]
[1740633672334,0.04551213,138.78,138.74,0.04738482]
[1740633672531,7.25931213,138.78,138.74,7.26278482]
[1740633673129,7.2139,138.77,138.74,0.04738482]
[1740633673635,7.25901213,138.78,138.74,7.26248482]
[1740633674535,7.214,138.77,138.74,0.04738482]
[1740633676135,0.04551213,138.78,138.74,0.04738482]
[1740633676335,20.79058,138.79,138.74,2.07308482]
[1740633676539,17.71208,138.79,138.74,2.07308482]
[1740633677039,17.71208,138.79,138.78,7.2134]
[1740633677441,11.26748,138.79,138.78,7.2134]
[1740633682151,0.0499913,138.8,138.79,7.2129]
[1740633682452,11.54,138.93,138.77,0.0532788]
[1740633682752,7.2088,138.87,138.81,7.2114]
[1740633683052,7.2088,138.87,138.74,2.0257]
[1740633683243,7.2096,138.86,138.74,2.0257]
[1740633683448,0.05464147,138.82,138.79,0.04586186]
[1740633683642,0.05464147,138.82,138.74,2.0257]
[1740633683848,0.05018176,138.79,138.77,0.04989609]
[1740633684049,7.2095,138.86,138.74,2.0257]
[1740633684245,6.463e-05,138.79,138.77,0.04794393]
[1740633684443,5.9946,138.91,138.74,2.0257]
[1740633684650,7.2084,138.88,138.83,7.2106]
[1740633684853,5.9946,138.91,138.83,7.2106]
[1740633685152,7.208,138.89,138.84,7.2102]
[1740633685551,0.05317966,138.88,138.85,0.05470192]
[1740633686046,7.26167966,138.88,138.85,0.05470192]
[1740633687050,0.05317966,138.88,138.85,0.05470192]
[1740633689349,7.26177966,138.88,138.85,0.05470192]
[1740633690149,0.05317966,138.88,138.85,0.05470192]
[1740633690855,0.05317966,138.88,138.86,7.2092]
[1740633691054,0.05317966,138.88,138.85,0.05470192]
[1740633693854,0.05317966,138.88,138.85,7.26410192]
[1740633694059,0.05317966,138.88,138.85,0.05470192]
[1740633695061,0.05317966,138.88,138.85,7.26410192]
[1740633696155,0.05317966,138.88,138.86,7.2092]
[1740633702965,0.05317966,138.88,138.85,0.05470192]
[1740633703668,7.209,138.87,138.85,0.05470192]
[1740633705876,7.2092,138.86,138.85,0.05470192]
[1740633711380,7.2089,138.87,138.85,0.05470192]
[1740633711783,0.05317966,138.88,138.85,0.05470192]
[1740633712082,0.05317966,138.88,138.86,7.2092]
[1740633715282,0.05317966,138.88,138.87,7.2087]
[1740633715777,0.05317966,138.88,138.85,0.05470192]
[1740633715983,0.05317966,138.88,138.86,7.209]
[1740633717277,0.05317966,138.88,138.85,7.26420192]
[1740633717679,0.05317966,138.88,138.85,0.05470192]
[1740633717879,7.2088,138.87,138.85,0.05470192]
[1740633718478,0.05317966,138.88,138.85,0.05470192]
[1740633718782,0.05317966,138.88,138.79,0.97247]
[1740633718783,1.894,138.87,138.79,0.97247]
[1740633719785,0.05494203,138.84,138.77,29.20508475]
[1740633719982,1.98664203,138.84,138.77,29.20508475]
[1740633720178,7.2134,138.78,138.77,29.20508475]
[1740633720775,7.2134,138.78,138.74,29.20508475]
[1740633720983,7.2134,138.78,138.76,0.04826898]
[1740633721178,0.05398192,138.79,138.76,0.04826898]
[1740633722076,0.05398192,138.79,138.77,3.5759572]
[1740633722285,7.26728192,138.79,138.78,3.5759572]
[1740633722583,7.26728192,138.79,138.78,0.4973572]
[1740633722774,213.65398192,138.79,138.73,33.91898739]
[1740633722975,1.29584152,138.78,138.72,94.07676225]
[1740633723182,388.0,138.77,138.66,107.69297129]
[1740633723382,7.2154,138.75,138.66,107.69297129]
[1740633723584,213.6,138.75,138.66,107.69297129]
[1740633723784,1.29604612,138.74,138.66,107.69297129]
[1740633723978,0.05421113,138.72,138.69,0.0494044]
[1740633724180,0.05421113,138.72,138.65,94.07676225]
[1740633724485,21.6,138.69,138.65,94.07676225]
[1740633724677,21.65421113,138.72,138.65,94.07676225]
[1740633724873,33.12,138.71,138.65,94.07676225]
[1740633725074,11.52,138.71,138.65,94.07676225]
[1740633725482,0.04987693,138.69,138.67,0.05462542]
[1740633728883,1.49194196,138.69,138.49,2.0492]
[1740633729087,1.29705441,138.68,138.49,2.0492]
[1740633729979,0.04549669,138.6,138.57,0.0510727]
[1740633730187,11.54,138.6,138.49,2.0492]
[1740633730385,11.54,138.6,138.57,0.04872077]
[1740633730580,11.54,138.6,138.49,2.0492]
[1740633730776,11.54,138.6,138.57,0.04896667]
[1740633730978,11.5934795,138.6,138.57,0.04896667]
[1740633731181,11.54,138.6,138.57,0.05006588]
[1740633731385,11.59411467,138.6,138.57,0.05006588]
[1740633734080,11.59411467,138.6,138.39,11.54]
[1740633734489,11.54,138.6,138.39,11.54]
[1740633735188,0.04547757,138.51,138.48,0.04279131]
[1740633735382,0.04547757,138.51,138.5,7.2278]
[1740633735584,11.54,138.6,138.39,11.54]
[1740633735783,0.05367078,138.52,138.49,0.04279131]
[1740633735984,11.54,138.6,138.39,11.54]
[1740633736189,11.54,138.6,138.49,0.04279131]
[1740633736384,0.05473163,138.51,138.5,7.228]
[1740633736589,11.54,138.6,138.53,0.04279131]
[1740633736792,11.54,138.6,138.4,1.3279791]
[1740633737089,11.54,138.6,138.54,7.2257]
[1740633737289,11.54,138.6,138.39,206.54]
[1740633737489,11.54,138.6,138.4,1.32796003]
[1740633737693,1.8892,138.62,138.4,1.32796003]
[1740633737890,9.644e-05,138.51,138.49,0.05225633]
[1740633738190,11.54,138.61,138.55,7.2249]
[1740633738491,11.54,138.61,138.41,14.4653]
[1740633738690,11.54,138.61,138.42,1.32784782]
[1740633739087,0.04922345,138.53,138.5,0.04552171]
[1740633739282,11.54,138.61,138.43,2.0125]
[1740633739588,11.54,138.6,138.46,0.05323365]
[1740633739788,11.54,138.6,138.44,1.8849]
[1740633739986,11.54,138.6,138.54,7.2257]
[1740633740387,11.54,138.6,138.55,7.2252]
[1740633740890,0.04925413,138.59,138.56,0.05319448]
[1740633741284,0.04925413,138.59,138.56,7.27789448]
[1740633741784,196.38,138.66,138.56,0.05319448]
[1740633741981,196.38,138.66,138.57,2.0261]
[1740633742993,0.04845478,138.63,138.6,7.26840565]
[1740633743591,0.04845478,138.63,138.62,7.2217]
[1740633744195,203.54,138.71,138.64,7.2207]
[1740633744396,11.54,138.71,138.58,1.9753]
[1740633744890,11.54,138.71,138.63,7.2209]
[1740633745095,11.54,138.71,138.58,1.9753]
[1740633745295,0.05488787,138.68,138.66,0.04625358]
[1740633745487,0.05488787,138.68,138.58,1.9753]
[1740633745690,0.05488787,138.68,138.66,0.04787594]
[1740633745895,11.54,138.7,138.66,0.04787594]
[1740633746088,0.04568017,138.68,138.58,1.9753]
[1740633746397,11.54,138.7,138.62,7.2213]
[1740633746696,0.05252891,138.64,138.62,7.26847306]
[1740633746891,11.54,138.7,138.62,7.26847306]
[1740633747091,0.05152255,138.64,138.62,7.26847306]
[1740633747293,11.54,138.7,138.62,7.26847306]
[1740633747491,11.54,138.7,138.62,0.04717306]
[1740633747692,0.0552998,138.67,138.62,0.04717306]
[1740633753100,7.2744998,138.67,138.62,0.04717306]
[1740633753995,7.2202,138.65,138.62,0.04717306]
[1740633754501,7.2202,138.65,138.49,11.54]
[1740633755403,215.5098,138.69,138.47,196.38]
[1740633755601,0.04661346,138.58,138.56,0.05361643]
[1740633755902,11.54,138.63,138.5,7.2278]
[1740633756103,0.04811148,138.58,138.56,0.05057501]
[1740633756301,11.54,138.63,138.56,0.05057501]
[1740633756503,0.05410792,138.58,138.56,0.05057501]
[1740633756704,11.54,138.63,138.56,0.05057501]
[1740633756900,0.0470411,138.58,138.56,0.05057501]
[1740633757203,0.04726779,138.58,138.56,0.05057501]
[1740633757606,7.2243,138.57,138.56,0.05057501]
[1740633766006,0.04726779,138.58,138.56,0.05057501]
[1740633766612,7.27146779,138.58,138.56,0.05057501]
[1740633766807,0.04726779,138.58,138.56,0.05057501]
[1740633767311,7.27136779,138.58,138.56,0.05057501]
[1740633767709,0.04726779,138.58,138.56,0.05057501]
[1740633768213,7.2243,138.57,138.56,0.05057501]
[1740633768812,7.2243,138.57,138.56,7.501e-05]
[1740633770114,28.8243,138.57,138.56,7.501e-05]
[1740633770315,36.0967842,138.57,138.56,7.501e-05]
[1740633772707,14.4967842,138.57,138.56,7.501e-05]
[1740633772911,218.0367842,138.57,138.56,7.501e-05]
[1740633775112,238.47727165,138.57,138.56,7.501e-05]
[1740633775421,254.09153726,138.57,138.35,1.3285565]
[1740633775719,1.2976842,138.56,138.35,196.3285565]
[1740633775917,7.2271,138.52,138.45,7.2302]
[1740633776116,7.2271,138.52,138.46,5.8385]
[1740633776515,0.05360771,138.5,138.48,0.0461934]
[1740633778319,7.28170771,138.5,138.48,0.0461934]
[1740633778819,0.05360771,138.5,138.48,0.0461934]
[1740633779221,3.9455,138.57,138.48,0.0461934]
[1740633779519,11.56,138.56,138.49,7.2283]
[1740633779713,15.5055,138.57,138.49,7.2283]
[1740633780114,15.5055,138.57,138.46,5.8385]
[1740633780314,0.05082137,138.53,138.46,5.8385]
[1740633780510,0.05082137,138.53,138.5,0.05207829]
[1740633781624,7.2275,138.51,138.5,0.05207829]
[1740633784227,7.2275,138.51,138.5,7.829e-05]
[1740633796532,7.2275,138.51,138.48,0.5282063]
[1740633796733,7.2275,138.51,138.47,3.9531]
[1740633797831,7.2275,138.51,138.48,0.04814028]
[1740633801540,7.2281,138.5,138.48,0.04814028]
[1740633802644,0.05082137,138.53,138.48,0.04814028]
[1740633803339,7.27762137,138.53,138.49,7.2283]
[1740633803539,0.05082137,138.53,138.49,7.2283]
[1740633804043,7.27772137,138.53,138.49,7.2283]
[1740633804345,0.05082137,138.53,138.48,7.27704028]
[1740633804843,7.2271,138.52,138.48,7.27704028]
[1740633805043,7.2271,138.52,138.49,7.2285]
[1740633806336,60.19492985,138.57,138.48,0.04814028]
[1740633806534,60.19492985,138.57,138.47,3.9531]
[1740633807440,7.27653334,138.53,138.51,0.05434533]
[1740633809837,7.2269,138.52,138.51,0.05434533]
[1740633810652,0.04973334,138.53,138.51,0.05434533]
[1740633810850,7.27613334,138.53,138.51,0.05434533]
[1740633811452,0.04973334,138.53,138.51,0.05434533]
[1740633812853,7.27643334,138.53,138.51,0.05434533]
[1740633813254,0.04973334,138.53,138.51,0.05434533]
[1740633813754,7.2269,138.52,138.51,0.05434533]
[1740633818656,7.2269,138.52,138.37,17.98733002]
[1740633819159,9.95746942,138.54,138.37,17.98733002]
[1740633819358,9.95746942,138.54,138.49,7.228]
[1740633819659,7.2266,138.53,138.49,7.228]
[1740633819854,7.28031732,138.53,138.5,0.04980025]
[1740633820359,0.05371732,138.53,138.5,0.04980025]
[1740633820859,0.05371732,138.53,138.5,7.27750025]
[1740633822260,0.05371732,138.53,138.5,0.04980025]
[1740633823053,7.2274,138.51,138.5,0.04980025]
[1740633824160,7.227,138.52,138.5,0.04980025]
[1740633824362,0.05371732,138.53,138.5,0.04980025]
[1740633825562,7.2274,138.51,138.5,0.04980025]
[1740633827063,0.05371732,138.53,138.5,0.04980025]
[1740633827264,7.227,138.52,138.5,0.04980025]
[1740633827764,7.28031732,138.53,138.5,0.04980025]
[1740633830459,0.05371732,138.53,138.5,7.27770025]
[1740633833064,7.28011732,138.53,138.5,7.27770025]
[1740633838975,7.28011732,138.53,138.5,0.04980025]
[1740633839174,7.227,138.52,138.5,0.04980025]
[1740633839469,0.05371732,138.53,138.5,0.04980025]
[1740633840078,7.2274,138.51,138.5,0.04980025]
[1740633840373,0.05371732,138.53,138.39,24.08520282]
[1740633840567,7.2299,138.47,138.42,7.232]
[1740633840776,2.0279,138.5,138.39,5.6708]
[1740633841267,7.2297,138.47,138.42,7.2318]
[1740633841469,0.04550314,138.46,138.43,0.05187868]
[1740633843774,7.27560314,138.46,138.43,0.05187868]
[1740633844769,7.2311,138.44,138.43,0.05187868]
[1740633848071,7.2311,138.44,138.43,7.868e-05]
[1740633849178,28.9311,138.44,138.43,7.868e-05]
[1740633849980,30.22995603,138.44,138.43,7.868e-05]
[1740633850771,32.16175603,138.44,138.43,7.868e-05]
[1740633852379,92.07118929,138.44,138.43,7.868e-05]
[1740633852681,99.29018929,138.44,138.43,7.868e-05]
[1740633853080,99.29069142,138.44,138.43,7.868e-05]
[1740633853978,92.07169142,138.44,138.43,7.868e-05]
[1740633856084,187.98979213,138.44,138.43,7.868e-05]
[1740633856285,7.2354,138.36,138.31,7.2375]
[1740633857079,11.56,138.39,138.32,7.2372]
[1740633857280,7.2353,138.36,138.21,3.9436]
[1740633857481,7.2353,138.36,138.34,0.05488539]
[1740633857681,7.2353,138.36,138.31,7.2378]
[1740633857884,7.28903256,138.36,138.34,0.04946216]
[1740633858285,7.2358,138.35,138.34,0.04946216]
[1740633860492,203.56,138.43,138.34,0.04946216]
[1740633860690,11.56,138.43,138.31,5.6904]
[1740633860887,7.234,138.39,138.31,5.6904]
[1740633861092,235.75432057,138.47,138.31,5.6904]
[1740633861293,208.1,138.45,138.31,5.6904]
[1740633861897,0.05376218,138.39,138.36,7.28935658]
[1740633862099,0.05376218,138.39,138.36,0.05435658]
[1740633862597,0.05376218,138.39,138.36,7.28935658]
[1740633862797,0.05376218,138.39,138.37,1.9555]
[1740633863198,208.1,138.45,138.25,14.4818]
[1740633863399,208.1,138.45,138.26,1.32922907]
[1740633863596,7.2325,138.42,138.38,7.2339]
[1740633864499,0.05042547,138.41,138.39,7.28081621]
[1740633864696,196.54,138.45,138.31,11.56]
[1740633864895,1.9939,138.48,138.39,0.0484015]
[1740633864896,0.04972211,138.41,138.39,0.0484015]
[1740633865098,7.2307,138.45,138.4,7.2328]
[1740633865294,1.8653,138.51,138.31,11.56]
[1740633865596,7.2297,138.47,138.43,7.2316]
[1740633865802,11.56,138.5,138.31,206.56]
[1740633866201,0.04622652,138.42,138.39,0.04681303]
[1740633866402,11.56,138.5,138.31,206.56]
[1740633866608,0.04562012,138.42,138.39,7.28833406]
[1740633866799,7.2313,138.44,138.39,7.28833406]
[1740633867003,0.05427882,138.42,138.39,7.27906035]
[1740633867203,7.2313,138.44,138.4,7.2332]
[1740633867400,7.2297,138.47,138.39,0.04576035]
[1740633867605,7.2297,138.47,138.31,206.56]
[1740633868105,7.2297,138.47,138.42,7.2317]
[1740633868294,11.56,138.5,138.38,0.05335049]
[1740633868494,11.56,138.5,138.43,7.2316]
[1740633868695,11.56,138.5,138.43,7.28176221]
[1740633868898,0.04743358,138.48,138.43,7.28176221]
[1740633869803,7.2295,138.47,138.43,7.28176221]
[1740633870707,7.2301,138.46,138.43,0.05016221]
[1740633872405,7.2301,138.46,138.43,1.90326221]
[1740633872804,0.04743358,138.48,138.43,1.90326221]
[1740633873000,0.04743358,138.48,138.44,7.2307]
[1740633873408,0.04743358,138.48,138.44,9.1773]
[1740633873701,0.04743358,138.48,138.44,1.9466]
[1740633873902,0.04743358,138.48,138.45,7.2304]
[1740633874700,0.04743358,138.48,138.44,9.1775]
[1740633876107,0.04743358,138.48,138.43,1.90326221]
[1740633876912,7.2305,138.46,138.43,1.90326221]
[1740633877304,0.04743358,138.48,138.43,1.90326221]
[1740633878412,7.27693358,138.48,138.44,7.231]
[1740633879010,7.2301,138.46,138.43,1.90326221]
[1740633880807,0.04743358,138.48,138.43,1.90326221]
[1740633881013,0.04743358,138.48,138.43,0.05016221]
[1740633882113,0.04743358,138.48,138.43,7.28146221]
[1740633882312,0.04743358,138.48,138.43,0.05016221]
[1740633883411,7.27653358,138.48,138.44,7.2309]
[1740633884514,7.27653358,138.48,138.43,0.05016221]
[1740633885015,0.04743358,138.48,138.43,0.05016221]
[1740633885715,0.04743358,138.48,138.46,7.2297]
[1740633888414,7.2276,138.51,138.46,7.2297]
[1740633889716,0.0466103,138.5,138.47,0.05464674]
[1740633890317,0.0466103,138.5,138.47,7.28414674]
[1740633890716,0.0466103,138.5,138.47,0.05464674]
[1740633891110,0.0466103,138.5,138.48,7.229]
[1740633892518,0.0466103,138.5,138.47,0.05464674]
[1740633893522,7.229,138.49,138.47,0.05464674]
[1740633893920,0.0466103,138.5,138.47,4.674e-05]
[1740633894125,18.769,138.48,138.47,4.674e-05]
[1740633899424,20.6535,138.48,138.47,4.674e-05]
[1740633900627,7.229,138.48,138.47,4.674e-05]
[1740633901624,27.15836383,138.48,138.47,4.674e-05]
[1740633904024,7.229,138.48,138.47,4.674e-05]
[1740633906524,7.229,138.48,138.33,139.46008018]
[1740633906525,35.54658014,138.49,138.33,138.62005843]
[1740633907028,7.2315,138.44,138.38,7.234]
[1740633907726,0.05506512,138.42,138.4,0.05485844]
[1740633907926,7.2316,138.43,138.38,7.234]
[1740633908227,35.54658014,138.49,138.4,0.04982178]
[1740633908228,0.05022058,138.42,138.4,0.04982178]
[1740633908420,7.2324,138.42,138.37,7.2347]
[1740633908619,7.28708326,138.42,138.4,0.04711995]
[1740633909825,0.05468326,138.42,138.4,0.04711995]
[1740633911424,13.84658014,138.49,138.4,0.04711995]
[1740633911622,13.84658014,138.49,138.33,333.62005843]
[1740633911927,7.2299,138.47,138.42,7.2318]
[1740633912128,13.84658014,138.49,138.42,7.2318]
[1740633912329,7.2299,138.47,138.43,7.2313]
[1740633912529,13.84658014,138.49,138.33,333.62005843]
[1740633912926,13.84658014,138.49,138.33,138.62005843]
[1740633912927,35.54658014,138.49,138.33,138.62005843]
[1740633913326,13.84658014,138.49,138.33,138.62005843]
[1740633913522,7.232,138.43,138.38,7.2339]
[1740633913726,13.84658014,138.49,138.38,7.2339]
[1740633913928,0.0548617,138.42,138.39,0.05305467]
[1740633914128,7.2322,138.42,138.38,7.2339]
[1740633914329,0.05170591,138.42,138.39,0.04727992]
[1740633914633,3.894,138.49,138.37,7.2347]
[1740633914834,0.04869673,138.42,138.33,138.62005843]
[1740633915034,25.594,138.49,138.33,138.62005843]
[1740633915035,217.594,138.49,138.33,138.62005843]
[1740633915327,0.04830349,138.39,138.35,7.2356]
[1740633915533,7.2339,138.39,138.33,138.62005843]
[1740633915831,0.04717382,138.37,138.36,7.28145925]
[1740633916025,7.2332,138.41,138.36,7.2353]
[1740633916222,0.05333504,138.38,138.35,7.28838102]
[1740633916421,1.29855266,138.48,138.33,138.62005843]
[1740633916632,0.0502871,138.38,138.35,0.046872]
[1740633916830,7.2341,138.39,138.35,0.05424981]
[1740633917021,0.05463082,138.38,138.35,0.05424981]
[1740633918135,0.05463082,138.38,138.37,7.2348]
[1740633918327,7.2323,138.42,138.35,0.05424981]
[1740633918930,7.2323,138.42,138.38,7.2339]
[1740633919228,11.54,138.43,138.33,138.62005843]
[1740633919426,0.05188569,138.39,138.37,0.04773411]
[1740633920631,0.05188569,138.39,138.38,7.2342]
[1740633921237,0.05188569,138.39,138.37,7.28233411]
[1740633922440,0.05188569,138.39,138.37,0.04773411]
[1740633924039,0.05188569,138.39,138.37,7.28243411]
[1740633924432,9.95258014,138.48,138.37,0.04773411]
[1740633924633,9.95258014,138.48,138.33,138.62005843]
[1740633924841,9.95258014,138.48,138.33,333.62005843]
[1740633925041,9.95258014,138.48,138.43,7.2313]
[1740633925435,17.18178014,138.48,138.43,7.2313]
[1740633925636,0.05427936,138.47,138.44,0.05439519]
[1740633925845,0.05427936,138.47,138.44,7.28519519]
[1740633927540,0.05427936,138.47,138.35,11.54]
[1740633927741,7.2286,138.49,138.35,11.54]
[1740633928443,7.2286,138.49,138.43,7.2312]
[1740633928841,0.05291485,138.47,138.45,0.05126353]
[1740633931342,0.05291485,138.47,138.45,7.28136353]
[1740633932246,0.05291485,138.47,138.46,7.2301]
[1740633932549,0.05291485,138.47,138.45,0.05126353]
[1740633935051,7.2301,138.46,138.45,6.353e-05]
[1740633935452,9.1308,138.46,138.45,6.353e-05]
[1740633935648,11.1426,138.46,138.45,6.353e-05]
[1740633943054,32.8426,138.46,138.45,6.353e-05]
[1740633946350,34.1413938,138.46,138.45,6.353e-05]
[1740633946746,34.14148285,138.46,138.45,6.353e-05]
[1740633947244,46.70973284,138.46,138.45,6.353e-05]
[1740633947855,47.0274847,138.46,138.26,1.9742]
[1740633948057,1.29888285,138.45,138.26,1.9742]
[1740633948259,7.2347,138.38,138.26,1.9742]
[1740633948555,11.54,138.4,138.26,1.9742]
[1740633948949,11.54,138.4,138.32,7.2895162]
[1740633948950,0.05359551,138.34,138.32,7.2895162]
[1740633949147,7.2351,138.37,138.32,7.2895162]
[1740633949357,0.04831685,138.34,138.32,7.2895162]
[1740633950353,1.9371,138.43,138.32,0.0523162]
[1740633950553,11.54,138.42,138.26,1.9742]
[1740633951048,7.2351,138.37,138.33,7.2368]
[1740633951664,0.04932303,138.36,138.34,0.04939219]
[1740633952360,7.2358,138.35,138.34,0.04939219]
[1740633955756,7.28472303,138.36,138.34,0.04939219]
[1740633955958,0.04932303,138.36,138.34,0.04939219]
[1740633957359,7.2358,138.35,138.34,0.04939219]
[1740633960868,7.28482303,138.36,138.34,0.04939219]
[1740633962167,0.04932303,138.36,138.34,0.04939219]
[1740633962966,0.04932303,138.36,138.35,7.2358]
[1740633963863,192.0,138.42,138.37,7.2345]
[1740633964067,7.2323,138.42,138.35,2.0509]
[1740633964268,7.2323,138.42,138.36,1.953]
[1740633964666,7.2318,138.43,138.38,7.2338]
[1740633964865,21.55000073,138.46,138.36,1.953]
[1740633965066,0.05040662,138.42,138.39,0.04721053]
[1740633965465,0.05040662,138.42,138.39,7.28061053]
[1740633967973,0.05040662,138.42,138.39,0.04721053]
[1740633968174,0.05040662,138.42,138.4,7.2331]
[1740633968868,0.05040662,138.42,138.41,7.2327]
[1740633969573,7.2305,138.46,138.42,7.2317]
[1740633969764,7.2305,138.46,138.42,2.86627951]
[1740633969969,7.2305,138.46,138.37,1.8759]
[1740633970171,15.96400073,138.51,138.37,1.8759]
[1740633970470,11.54,138.5,138.37,1.8759]
[1740633970672,0.0528699,138.45,138.43,7.28656752]
[1740633970871,7.2292,138.48,138.43,7.28656752]
[1740633971170,0.05155055,138.45,138.43,0.05516752]
[1740633973372,7.2311,138.44,138.43,0.05516752]
[1740633975574,7.2311,138.44,138.43,6.752e-05]
[1740633977473,11.0827,138.44,138.43,6.752e-05]
[1740633977668,13.1156,138.44,138.43,6.752e-05]
[1740633979678,34.8156,138.44,138.43,6.752e-05]
[1740633980376,36.11461665,138.44,138.43,6.752e-05]
[1740633982169,36.11476371,138.44,138.43,6.752e-05]
[1740633983780,36.11482413,138.44,138.43,6.752e-05]
[1740633983976,43.66363107,138.44,138.43,6.752e-05]
[1740633984178,56.22452525,138.44,138.43,6.752e-05]
[1740633984379,176.64376878,138.44,138.43,6.752e-05]
[1740633984578,164.0828746,138.44,138.43,6.752e-05]
[1740633985177,176.63399068,138.44,138.43,6.752e-05]
[1740633987083,137.021861,138.44,138.43,6.752e-05]
[1740633988981,124.47074492,138.44,138.43,6.752e-05]
[1740633989483,128.46193798,138.44,138.43,6.752e-05]
[1740633990477,7.235,138.37,138.33,7.2366]
[1740633991175,7.234,138.39,138.23,14.4839]
[1740633991381,7.234,138.39,138.22,196.6]
[1740633991588,0.05054892,138.32,138.3,0.04619139]
[1740633991783,11.54,138.4,138.34,7.2358]
[1740633991784,7.2342,138.38,138.34,7.2358]
[1740633992186,0.04737824,138.37,138.34,7.2358]
[1740633992387,0.04737824,138.37,138.35,0.04899653]
[1740633993589,0.04737824,138.37,138.36,7.2353]
[1740633994989,0.04737824,138.37,138.35,7.28459653]
[1740634000690,7.2353,138.36,138.35,0.04899653]
[1740634001089,0.04737824,138.37,138.35,0.04899653]
[1740634001394,7.28247824,138.37,138.35,0.04899653]
[1740634001797,7.2353,138.36,138.35,0.04899653]
[1740634007902,7.2353,138.36,138.35,9.653e-05]
[1740634008299,9.1925,138.36,138.35,9.653e-05]